fUSD/lending_fUSD_20241102
["ID","MTS","AMOUNT","RATE_DAILY","PERIOD"]
[341178506,1730543431714,-609.09914685,0.00035,2]
[341178507,1730543431723,-849.35,0.00037473,2]
[341178508,1730543431732,-702.60586405,0.000379,2]
[341178509,1730543431744,-552.68386261,0.000379,2]
[341178571,1730543437592,-520.73508209,0.000379,2]
[341178572,1730543437602,-247.53,0.00038818,2]
[341178573,1730543437613,-3390.89802645,0.00039,2]
[341178574,1730543437753,-580.5753858,0.00039,2]
[341178577,1730543439583,-1023.25,0.00039,2]
[341178578,1730543439607,-538.27195582,0.00039,2]
[341178579,1730543439706,-391.94577385,0.00039,2]
[341178580,1730543439716,-591.7411487,0.00039421,2]
[341178581,1730543439725,-261.56130933,0.00039422,2]
[341178582,1730543439736,-738.43869067,0.00039422,2]
[341178583,1730543439746,-129.30771529,0.00039452,2]
[341178584,1730543439757,-20.69228471,0.00039452,2]
[341178585,1730543439766,-154.92,0.00039628,2]
[341178586,1730543439775,-154.92,0.0003965,2]
[341178587,1730543439785,-154.92,0.00039672,2]
[341178588,1730543439795,-188.677028,0.00039672,14]
[341178589,1730543439803,-151.0,0.00039672,7]
[341178590,1730543439813,-154.92,0.00039694,2]
[341178591,1730543439823,-154.92,0.00039716,2]
[341178592,1730543439832,-11.83124932,0.00039737,2]
[341178593,1730543439843,-837.51875068,0.00039737,2]
[341178594,1730543439853,-154.92,0.00039738,2]
[341178595,1730543439862,-151.0,0.00039742,14]
[341178596,1730543439873,-151.0,0.00039742,14]
[341178597,1730543439882,-154.92,0.0003976,2]
[341178598,1730543439891,-154.92,0.00039782,2]
[341178599,1730543439902,-207.52521992,0.00039788,2]
[341178600,1730543439912,-200.0,0.00039789,2]
[341178601,1730543439922,-154.92,0.00039804,2]
[341178602,1730543439931,-154.92,0.00039826,2]
[341178603,1730543439941,-154.92,0.00039848,2]
[341178604,1730543439950,-255.074525,0.00039848,14]
[341178605,1730543439960,-151.0,0.00039848,14]
[341178608,1730543440076,-154.92,0.0003987,2]
[341178609,1730543440090,-151.0,0.0003987,7]
[341178610,1730543440099,-154.92,0.00039892,2]
[341178612,1730543440108,-518.9179753,0.000399,5]
[341178614,1730543440117,-154.92,0.00039914,2]
[341178615,1730543440127,-151.0,0.00039914,14]
[341178616,1730543440136,-151.0,0.00039936,14]
[341178617,1730543440145,-163.964332,0.00039936,14]
[341178618,1730543440154,-154.92,0.00039936,2]
[341178619,1730543440163,-217.45,0.00039937,2]
[341178620,1730543440172,-154.92,0.00039958,2]
[341178621,1730543440181,-217.45,0.00039958,2]
[341178622,1730543440190,-63.5791971,0.00039973,5]
[341178623,1730543440201,-338.68893181,0.00039973,5]
[341178624,1730543440210,-500.0,0.00039973,5]
[341178625,1730543440219,-217.45,0.00039979,2]
[341178626,1730543440229,-154.92,0.0003998,2]
[341178627,1730543440238,-256.23847826,0.0003999,3]
[341178628,1730543440249,-389.67152174,0.0003999,3]
[341178629,1730543440258,-320.47625362,0.0003999,2]
[341178630,1730543440268,-500.0,0.00039999,31]
[341178631,1730543440277,-70.8902274,0.00039999,31]
[341178632,1730543440288,-264.4956,0.00039999,31]
[341178633,1730543440299,-164.6141726,0.00039999,31]
[341178634,1730543440308,-421.21119034,0.00039999,31]
[341178635,1730543440317,-1595.25517363,0.0004,30]
[341178636,1730543440328,-362.572002,0.0004,30]
[341178637,1730543440342,-664.69547514,0.0004,30]
[341178639,1730543442606,-8602.25386121,0.0004,30]
[341178642,1730543464481,510.47,0.00025,30]
[341178647,1730544116286,159.39,0.00015342,2]
[341178813,1730544395305,-800.0,0.00026986,120]
[341178930,1730544611882,158.5,0.00015342,2]
[341178942,1730544631823,-500.0,0.000208,2]
[341178961,1730544644140,-259.0,0.000208,2]
[341178962,1730544644150,-446.11050773,0.00024955,2]
[341178999,1730544878737,150.0,0.000175,3]
[341179001,1730545097457,159.5,0.00015342,2]
[341179053,1730545638576,250.0,0.00017,2]
[341179054,1730545685051,157.64,0.00015342,2]
[341179057,1730545736140,150.0,0.0002001,10]
[341179058,1730545739736,150.0,0.0002001,10]
[341179059,1730545741552,150.0,0.0002001,10]
[341179060,1730545744388,150.0,0.0002001,10]
[341179063,1730545750447,150.0,0.0002001,10]
[341179073,1730545832062,-150.0,0.00018107,2]
[341179074,1730545832071,-300.0,0.00019,2]
[341179075,1730545832080,-187.99,0.00019178,2]
[341179076,1730545832090,-300.0,0.00019725,2]
[341179077,1730545832099,-869.0,0.000208,2]
[341179078,1730545832108,-350.0,0.00021,2]
[341179079,1730545832117,-19958.54466435,0.00021,2]
[341179080,1730545832127,-420.0,0.00021484,2]
[341179081,1730545832136,-4092.32768058,0.00022799,2]
[341179082,1730545832145,-9999.99,0.00022799,2]
[341179083,1730545832156,-4092.32768056,0.000228,2]
[341179084,1730545832165,-155.585901,0.000228,7]
[341179085,1730545832175,-165.685835,0.000228,7]
[341179086,1730545832185,-151.0,0.000228,7]
[341179087,1730545832195,-1600.0,0.00022899,2]
[341179088,1730545832204,-400.0,0.00023,2]
[341179089,1730545832214,-151.0,0.00023301,7]
[341179090,1730545832223,-151.0,0.00023301,7]
[341179091,1730545832233,-587.0,0.00023401,2]
[341179092,1730545832243,-151.0,0.00023401,7]
[341179093,1730545832252,-150.0,0.00023723,2]
[341179094,1730545832261,-157.64,0.00024031,2]
[341179095,1730545832270,-355.21273935,0.000245,2]
[341179096,1730545832280,-106645.44247474,0.00024501,2]
[341179097,1730545832289,-151.0,0.00024501,7]
[341179098,1730545832299,-151.0,0.00024501,7]
[341179099,1730545832309,-151.0,0.00024501,7]
[341179100,1730545832318,-151.0,0.00024501,7]
[341179101,1730545832328,-151.0,0.00024501,7]
[341179102,1730545832338,-151.0,0.00024501,7]
[341179103,1730545832347,-762.40068564,0.0002471,2]
[341179104,1730545832357,-450.0,0.00025,2]
[341179106,1730545832366,-823.0,0.00025488,2]
[341179108,1730545832375,-151.0,0.00025488,7]
[341179109,1730545832385,-270.46,0.00026986,15]
[341179111,1730545832394,-150.99,0.00026986,2]
[341179113,1730545832403,-151.0,0.00026986,7]
[341179114,1730545832413,-151.0,0.00026986,7]
[341179115,1730545832422,-151.0,0.00026986,7]
[341179116,1730545832432,-800.0,0.00026986,120]
[341179117,1730545832442,-800.0,0.00026986,120]
[341179118,1730545832451,-800.0,0.00026986,120]
[341179119,1730545832460,-800.0,0.00026986,120]
[341179120,1730545832469,-800.0,0.00026986,120]
[341179121,1730545832479,-500.0,0.00027,2]
[341179122,1730545832489,-151.0,0.00027,7]
[341179123,1730545832499,-162.452182,0.00027,7]
[341179124,1730545832508,-187.99,0.00027397,2]
[341179125,1730545832518,-151.0,0.00027397,7]
[341179126,1730545832527,-658.38,0.00027397,10]
[341179127,1730545832537,-1152.0,0.00027761,2]
[341179128,1730545832547,-958.86,0.00027858,2]
[341179129,1730545832556,-550.0,0.00029,2]
[341179130,1730545832566,-250.0,0.00029746,2]
[341179131,1730545832575,-12725.18045508,0.0002999,2]
[341179132,1730545838064,-151.0,0.000228,7]
[341179133,1730545838075,-270.817987,0.00023401,7]
[341179134,1730545838085,-500.0,0.0002664,2]
[341179135,1730545838098,-1435.75954492,0.0002999,2]
[341179136,1730545838107,-312.59025,0.0003,2]
[341179137,1730545838117,-312.59025,0.0003,2]
[341179138,1730545838127,-499.29064415,0.0003,5]
[341179139,1730545838136,-178.69425,0.0003,2]
[341179140,1730545838145,-151.0,0.0003,7]
[341179141,1730545838155,-958.86,0.00030122,2]
[341179142,1730545838165,-1613.0,0.00030237,2]
[341179143,1730545838174,-636.37540545,0.00030448,15]
[341179144,1730545838183,-159.5,0.00030548,2]
[341179145,1730545838194,-200.0,0.00030654,2]
[341179146,1730545838203,-600.0,0.00031,2]
[341179147,1730545838214,-636.37540539,0.00032017,15]
[341179148,1730545838223,-958.86,0.00032386,2]
[341179149,1730545838233,-151.0,0.00032386,7]
[341179151,1730545838242,-157.64,0.0003272,2]
[341179153,1730545838252,-775.0,0.00032934,2]
[341179155,1730545838262,-250.0,0.00032947,2]
[341179157,1730545838271,-650.0,0.00033,2]
[341179159,1730545838280,-636.37540539,0.00033585,15]
[341179161,1730545838290,-958.86,0.0003465,2]
[341179163,1730545838301,-700.0,0.00035,2]
[341179165,1730545838311,-636.37540539,0.00035154,15]
[341179167,1730545838319,-151.0,0.00035616,7]
[341179169,1730545838328,-153.0,0.00035616,2]
[341179171,1730545838337,-153.0,0.00035616,2]
[341179173,1730545838346,-153.0,0.00035616,2]
[341179175,1730545838355,-153.0,0.00035616,2]
[341179177,1730545838364,-187.99,0.00035616,120]
[341179179,1730545838374,-300.0,0.00035616,2]
[341179181,1730545838383,-4469.21994681,0.00035619,2]
[341179183,1730545838392,-157.89091,0.00035619,7]
[341179185,1730545838402,-163.51,0.00035683,2]
[341179187,1730545838411,-246.95,0.0003611,4]
[341179189,1730545838420,-151.8,0.00036161,2]
[341179191,1730545838429,-198.03,0.00036679,2]
[341179193,1730545838438,-636.37540539,0.00036722,15]
[341179195,1730545838448,-300.0,0.00036759,2]
[341179198,1730545838457,-958.86,0.00036914,2]
[341179201,1730545838466,-750.0,0.00037,2]
[341179203,1730545838475,-153.29,0.00037128,2]
[341179205,1730545838485,-153.29,0.00037148,2]
[341179207,1730545838493,-153.29,0.00037169,2]
[341179209,1730545838504,-153.29,0.0003719,2]
[341179211,1730545838513,-38405.67419794,0.00037199,2]
[341179213,1730545838522,-153.29,0.0003721,2]
[341179214,1730545838531,-153.29,0.00037231,2]
[341179217,1730545838540,-153.29,0.00037252,2]
[341179218,1730545838551,-153.29,0.00037272,2]
[341179220,1730545838565,-153.29,0.00037293,2]
[341179222,1730545838574,-153.29,0.00037313,2]
[341179224,1730545838583,-153.29,0.00037334,2]
[341179226,1730545838592,-163.85,0.0003734,2]
[341179228,1730545838601,-153.29,0.00037355,2]
[341179229,1730545838610,-153.29,0.00037375,2]
[341179230,1730545838619,-153.29,0.00037396,2]
[341179231,1730545838627,-153.29,0.00037417,2]
[341179232,1730545838636,-153.29,0.00037437,2]
[341179233,1730545838645,-153.29,0.00037458,2]
[341179234,1730545838655,-153.29,0.00037478,2]
[341179235,1730545838663,-153.29,0.00037499,2]
[341179236,1730545838672,-1000.0,0.00037987,2]
[341179237,1730545838682,-205.25,0.0003801,120]
[341179239,1730545838691,-863.9,0.00038056,2]
[341179240,1730545838700,-278.52,0.00038108,2]
[341179241,1730545838709,-187.27,0.00038154,120]
[341179242,1730545838718,-163.64,0.00038176,2]
[341179243,1730545838727,-154.97,0.00038256,2]
[341179244,1730545838736,-443.81,0.00038256,2]
[341179246,1730545838747,-432.02,0.00038256,2]
[341179248,1730545838757,-636.37540539,0.00038291,15]
[341179250,1730545838766,-150.0,0.00038356,2]
[341179252,1730545838775,-150.0,0.00038356,2]
[341179254,1730545838785,-150.0,0.00038356,2]
[341179256,1730545838794,-36879.49425857,0.00038364,2]
[341179258,1730545838803,-312.59025,0.00038442,2]
[341179260,1730545838812,-198.03,0.00038513,2]
[341179262,1730545838822,-35922.0,0.00038812,2]
[341179264,1730545838831,-184.83,0.00038964,2]
[341179265,1730545838840,-13585.0,0.00038978,2]
[341179266,1730545838849,-150.0,0.00038978,2]
[341179267,1730545838858,-1155.0,0.00038978,2]
[341179268,1730545838868,-1088.0,0.00038978,2]
[341179269,1730545838876,-184.83,0.00038984,2]
[341179270,1730545838885,-800.0,0.00039,2]
[341179271,1730545838894,-184.83,0.00039005,2]
[341179272,1730545838904,-184.83,0.00039025,2]
[341179273,1730545838913,-184.83,0.00039046,2]
[341179274,1730545838923,-184.83,0.00039067,2]
[341179275,1730545838932,-184.83,0.00039087,2]
[341179276,1730545838941,-184.83,0.00039108,2]
[341179277,1730545838950,-184.83,0.00039128,2]
[341179278,1730545838959,-184.83,0.00039149,2]
[341179279,1730545838968,-184.83,0.00039169,2]
[341179280,1730545838978,-958.86,0.00039177,2]
[341179281,1730545838987,-166.64,0.00039186,2]
[341179282,1730545838996,-184.83,0.0003919,2]
[341179283,1730545839097,-184.83,0.0003921,2]
[341179284,1730545839111,-184.83,0.00039231,2]
[341179285,1730545839121,-184.83,0.00039251,2]
[341179286,1730545839130,-184.83,0.00039272,2]
[341179287,1730545839141,-184.83,0.00039292,2]
[341179288,1730545839151,-184.83,0.00039313,2]
[341179289,1730545839160,-184.83,0.00039333,2]
[341179290,1730545839169,-184.83,0.00039354,2]
[341179291,1730545839179,-428.14615172,0.00039448,2]
[341179292,1730545839188,-150.0,0.00039452,2]
[341179293,1730545839197,-432.02,0.00039452,2]
[341179294,1730545839206,-432.02,0.00039452,2]
[341179295,1730545839215,-1250.28,0.00039532,2]
[341179297,1730545839224,-1250.3,0.00039548,2]
[341179298,1730545839234,-200.16730677,0.00039652,2]
[341179299,1730545839243,-162.734,0.0003966,30]
[341179300,1730545839252,-163.51,0.00039697,2]
[341179301,1730545839261,-636.37540539,0.00039859,15]
[341179302,1730545839270,-1094.7154,0.00039888,7]
[341179303,1730545839279,-400.0,0.000399,14]
[341179304,1730545839288,-219.91383653,0.000399,2]
[341179305,1730545839298,-220.52239437,0.000399,15]
[341179306,1730545839307,-309.53417352,0.000399,2]
[341179307,1730545839316,-5022.0,0.0003993,3]
[341179308,1730545839325,-172.93768327,0.00039989,2]
[341179309,1730545839335,-414.93362892,0.0003999,2]
[341179310,1730545839344,-200.0,0.00039997,2]
[341179311,1730545839354,-200.0,0.00039997,2]
[341179312,1730545839363,-200.0,0.00039997,2]
[341179313,1730545839373,-200.0,0.00039997,2]
[341179314,1730545839382,-198.0,0.00039997,2]
[341179315,1730545839391,-3369.0581357,0.00039997,2]
[341179316,1730545839400,-2197.7305014,0.00039997,2]
[341179317,1730545839409,-1421.93772267,0.0004,30]
[341179318,1730545839419,-4434.63776557,0.0004,4]
[341179319,1730545839428,-207.9379293,0.0004,30]
[341179320,1730545839438,-147940.79668378,0.0004,2]
[341179323,1730545839957,-151.0,0.000228,7]
[341179324,1730545839968,-2257.05913949,0.0004,2]
[341179325,1730545839981,-15236.37448164,0.0004,2]
[341179329,1730545843214,-150.01,0.00039989,2]
[341179330,1730545843223,-3368.27862023,0.0004,2]
[341179331,1730545845865,-5209.68277392,0.0004,2]
[341179335,1730545870545,-150.0,0.00018116,2]
[341179336,1730545870572,-154.758281,0.000228,7]
[341179337,1730546026624,150.0,0.000175,3]
[341179338,1730546027794,150.0,0.000175,3]
[341179339,1730546028616,150.0,0.000175,3]
[341179340,1730546029448,150.0,0.000175,3]
[341179341,1730546030291,150.0,0.000175,3]
[341179342,1730546031229,150.0,0.000175,3]
[341179344,1730546201838,167.71,0.00015342,2]
[341179345,1730546708058,324833.20628279,0.00016,2]
[341179347,1730546708084,644404.17747779,0.00016,2]
[341179348,1730546713048,156.3,0.00015342,2]
[341179355,1730546817623,5835.47838327,0.000145,2]
[341179356,1730546847617,165.65,0.00025,30]
[341179357,1730546884396,635302.53568566,0.00015,2]
[341179359,1730546899313,6116.66835584,0.0001439,2]
[341179360,1730546911954,552.07744412,0.00015235,2]
[341179364,1730546926450,150.0,0.00013,2]
[341179417,1730547032102,-150.0,0.00018107,2]
[341179419,1730547032112,-163.94,0.00019178,2]
[341179421,1730547032123,-300.0,0.00019725,2]
[341179422,1730547032134,-2332.06006223,0.000199,3]
[341179423,1730547032143,-36531.04594705,0.0002,2]
[341179449,1730547043180,-3016.56060877,0.0002,2]
[341179458,1730547046107,-5209.68277392,0.0002,2]
[341179460,1730547098258,150.000001,0.00017,2]
[341179461,1730547206694,159.39,0.00015342,2]
[341179463,1730547455481,250.0,0.00017,2]
[341179464,1730547533397,-150.0,0.00018107,2]
[341179465,1730547533424,-300.0,0.00019,2]
[341179466,1730547533451,-179.41,0.00019178,2]
[341179467,1730547533475,-262.0,0.00019725,2]
[341179468,1730547533500,-2108.59,0.0002,2]
[341179469,1730547579696,-150.0,0.0001811,2]
[341179470,1730547579728,-2831.98183644,0.0002,2]
[341179471,1730547605466,150.0,0.00018114,2]
[341179474,1730547647327,150.0,0.00018118,2]
[341179475,1730547661232,300.0,0.00019725,2]
[341179476,1730547685136,154.75,0.00016712,2]
[341179477,1730547688764,150.0,0.00018121,2]
[341179478,1730547721314,300.0,0.00019725,2]
[341179479,1730547730296,150.0,0.00018123,2]
[341179480,1730547772010,150.0,0.00018123,2]
[341179481,1730547781345,300.0,0.00019725,2]
[341179482,1730547813801,150.0,0.00018123,2]
[341179483,1730547855534,150.0,0.00018123,2]
[341179484,1730547896907,150.0,0.00018123,2]
[341179487,1730547913645,292.42,0.00015342,2]
[341179488,1730547938429,150.0,0.00018123,2]
[341179489,1730547979872,150.0,0.00018123,2]
[341179490,1730548021312,300.0,0.00019725,2]
[341179491,1730548021365,150.0,0.00018123,2]
[341179497,1730548062772,150.0,0.00018123,2]
[341179498,1730548104426,150.0,0.00018123,2]
[341179499,1730548146183,150.0,0.00018123,2]
[341179545,1730548187545,150.0,0.00018123,2]
[341179548,1730548201423,300.0,0.00019725,2]
[341179550,1730548229043,150.0,0.00018123,2]
[341179560,1730548232469,-782.0,0.000205,2]
[341179561,1730548232480,-376.0,0.000208,2]
[341179562,1730548232497,-518.91797529,0.000209,2]
[341179563,1730548232509,-2162.26859205,0.00021,4]
[341179564,1730548232624,-18093.85237424,0.00021,4]
[341179565,1730548232635,-20255.5858043,0.00021,4]
[341179566,1730548232646,-20255.68123029,0.00021,4]
[341179567,1730548232656,-350.0,0.00021,2]
[341179568,1730548232665,-420.0,0.00021484,2]
[341179569,1730548232675,-292.42,0.00021745,2]
[341179570,1730548232684,-400.0,0.00023,2]
[341179571,1730548232693,-500.0,0.00024932,2]
[341179572,1730548232703,-150.99,0.00024932,2]
[341179573,1730548232713,-20000.0,0.00025,5]
[341179574,1730548232725,-450.0,0.00025,2]
[341179575,1730548232736,-500.0,0.00027,2]
[341179576,1730548232745,-292.42,0.00028147,2]
[341179577,1730548232756,-550.0,0.00029,2]
[341179578,1730548232766,-183.71175,0.0003,2]
[341179579,1730548232776,-3428.8320442,0.0003,15]
[341179580,1730548232785,-600.0,0.00031,2]
[341179581,1730548232796,-9661.20408941,0.0003143,4]
[341179624,1730548240342,-744.142746,0.0003143,4]
[341179625,1730548240494,-406.24944498,0.0003143,4]
[341179675,1730548243753,-3402.14350217,0.0003143,4]
[341179832,1730548245370,154.75,0.00016712,2]
[341179863,1730548246497,-4378.17807016,0.0003143,4]
[341179864,1730548246506,-650.0,0.00033,2]
[341179865,1730548246515,-822.21,0.00033014,2]
[341179866,1730548246525,-178.88,0.00034091,2]
[341179867,1730548246534,-544.91,0.0003434,2]
[341179868,1730548246543,-163.85,0.00034524,2]
[341179869,1730548246552,-292.42,0.00034549,2]
[341179870,1730548246561,-209.14,0.0003487,2]
[341179871,1730548246570,-187.27,0.00034887,120]
[341179872,1730548246580,-852.12,0.000349,2]
[341179873,1730548246588,-150.0,0.00034932,2]
[341179874,1730548246598,-700.0,0.00035,2]
[341179875,1730548246607,-165.49,0.0003501,2]
[341179876,1730548246616,-822.21,0.00035278,2]
[341179878,1730548246625,-153.0,0.00035616,2]
[341179879,1730548246634,-153.0,0.00035616,2]
[341179881,1730548246643,-201.09,0.00035616,2]
[341179882,1730548246652,-166.87,0.00035978,2]
[341179883,1730548246662,-178.88,0.00036008,2]
[341179884,1730548246671,-544.91,0.00036057,2]
[341179885,1730548246682,-216.368,0.00036621,45]
[341179886,1730548246692,-1000.0,0.00036834,2]
[341179887,1730548246703,-750.0,0.00037,2]
[341179888,1730548246712,-166.74,0.00037236,2]
[341179889,1730548246722,-822.21,0.00037542,2]
[341179890,1730548246731,-544.91,0.00037774,2]
[341179891,1730548246741,-154.92,0.00037796,2]
[341179892,1730548246750,-432.02,0.00037808,2]
[341179893,1730548246759,-508.15,0.00037808,2]
[341179894,1730548246772,-430.81,0.00037808,2]
[341179895,1730548246784,-15500.0,0.000379,2]
[341179896,1730548246795,-178.88,0.00037925,2]
[341179897,1730548246805,-154.92,0.00038174,2]
[341179898,1730548246816,-173.42,0.00038736,2]
[341179899,1730548246825,-1250.0,0.00038878,2]
[341179900,1730548246834,-463.531,0.00038878,2]
[341179901,1730548246844,-558.0,0.00038878,2]
[341179902,1730548246854,-1985.0,0.00038878,2]
[341179904,1730548246864,-1626.227,0.00038878,2]
[341179906,1730548246873,-3413.752,0.00038878,2]
[341179908,1730548246883,-812.0,0.00038878,2]
[341179910,1730548246892,-2904.0,0.00038878,2]
[341179912,1730548246902,-562.22,0.00038878,2]
[341179913,1730548246911,-150.0,0.00038878,2]
[341179915,1730548246921,-250.0,0.00038878,2]
[341179917,1730548246932,-165.021,0.00038878,2]
[341179920,1730548246942,-269.555,0.00038878,2]
[341179921,1730548246951,-151.0,0.00038878,14]
[341179923,1730548246960,-151.0,0.00038878,14]
[341179926,1730548246970,-151.0,0.00038878,14]
[341179927,1730548246979,-158.548543,0.00038878,14]
[341179930,1730548246988,-151.0,0.00038878,14]
[341179932,1730548246998,-152.061076,0.00038878,14]
[341179934,1730548247008,-151.0,0.00038878,14]
[341179936,1730548247017,-151.0,0.00038878,7]
[341179937,1730548247026,-223.0,0.00038878,14]
[341179939,1730548247035,-151.0,0.00038878,14]
[341179941,1730548247045,-151.0,0.00038878,14]
[341179943,1730548247054,-157.199704,0.00038878,14]
[341179945,1730548247063,-222.668121,0.00038878,14]
[341179947,1730548247073,-151.0,0.00038878,14]
[341179949,1730548247082,-500.0,0.000389,2]
[341179951,1730548247091,-800.0,0.00039,2]
[341179953,1730548247101,-156.9,0.00039154,2]
[341179954,1730548247110,-544.91,0.00039491,2]
[341179956,1730548247119,-156.9,0.00039546,2]
[341179958,1730548247128,-141423.08198661,0.00039588,3]
[341179959,1730548247137,-4849.17066439,0.00039626,3]
[341179960,1730548247146,-26049.32853238,0.00039628,3]
[341179961,1730548247155,-141423.08198661,0.00039642,3]
[341179962,1730548247166,-554895.76242289,0.00039661,3]
[341179963,1730548270794,150.0,0.00018123,2]
[341179964,1730548312124,150.0,0.00018123,2]
[341179965,1730548354006,191.64625213,0.00018123,2]
[341179967,1730548405182,152.23,0.00015342,2]
[341179968,1730548441448,300.0,0.00019725,2]
[341179969,1730548561191,300.0,0.00019725,2]
[341179970,1730548579042,163.94,0.00019178,2]
[341179971,1730548621278,300.0,0.00019725,2]
[341179972,1730548681396,300.0,0.00019725,2]
[341179973,1730548741263,300.0,0.00019725,2]
[341179974,1730548803413,500.0,0.0001726,2]
[341179975,1730548879755,250.0,0.00017,2]
[341179976,1730548880856,126.11951143,0.00019,2]
[341180076,1730549432501,-173.88048857,0.00019,2]
[341180077,1730549432512,-1696.0,0.000207,2]
[341180078,1730549432522,-350.0,0.00021,2]
[341180079,1730549432532,-152.23,0.000221,2]
[341180080,1730549432541,-400.0,0.00023,2]
[341180081,1730549432551,-151.89,0.00024658,2]
[341180082,1730549432560,-450.0,0.00025,2]
[341180083,1730549432570,-500.0,0.00027,2]
[341180084,1730549432580,-152.23,0.00028858,2]
[341180085,1730549432589,-550.0,0.00029,2]
[341180086,1730549432599,-186.914,0.0003,2]
[341180087,1730549432608,-186.914,0.0003,2]
[341180088,1730549432618,-600.0,0.00031,2]
[341180089,1730549432627,-181.64,0.00032012,2]
[341180090,1730549432637,-187.27,0.00032295,120]
[341180091,1730549432646,-650.0,0.00033,2]
[341180092,1730549432656,-698.87,0.00033448,2]
[341180093,1730549432671,-700.0,0.00035,2]
[341180094,1730549432680,-181.64,0.00035214,2]
[341180095,1730549432691,-152.23,0.00035616,2]
[341180096,1730549432700,-698.87,0.00035712,2]
[341180097,1730549432711,-166.64,0.00036507,2]
[341180098,1730549432720,-750.0,0.00037,2]
[341180099,1730549432729,-173.42,0.00037597,2]
[341180100,1730549432740,-698.87,0.00037976,2]
[341180101,1730549432750,-685.43,0.0003799,3]
[341180102,1730549432760,-709.9,0.0003799,10]
[341180103,1730549432771,-591.59,0.0003799,10]
[341180104,1730549432780,-173.094,0.0003799,50]
[341180105,1730549432791,-184.48,0.0003799,2]
[341180106,1730549432801,-184.48,0.0003799,2]
[341180107,1730549432810,-184.48,0.0003799,2]
[341180108,1730549432821,-184.48,0.0003799,2]
[341180109,1730549432830,-184.48,0.0003799,2]
[341180110,1730549432840,-17000.0,0.00038,7]
[341180111,1730549432849,-247988.07751142,0.00038,2]
[341180113,1730549438347,-492.99,0.0003799,10]
[341180115,1730549438356,-1418.13256472,0.00038,2]
[341180116,1730549438368,-1301.15361802,0.00038,2]
[341180117,1730549438379,-749.86877271,0.00038,2]
[341180118,1730549438390,-6889.10128633,0.00038,2]
[341180119,1730549438634,-0.74179889,0.00038,2]
[341180120,1730549438714,-274134.49724674,0.00038,2]
[341180121,1730549438723,-309.53417346,0.00038015,2]
[341180122,1730549438732,-374.62788279,0.00038215,2]
[341180123,1730549438743,-181.64,0.00038415,2]
[341180124,1730549438752,-451.0,0.00038721,2]
[341180125,1730549438761,-528.735,0.00038721,2]
[341180126,1730549438771,-1167.43,0.00038721,2]
[341180127,1730549438781,-2904.0,0.00038721,2]
[341180128,1730549438790,-812.0,0.00038721,2]
[341180129,1730549438799,-150.0,0.00038776,2]